fUSD/lending_fUSD_20240418
["ID","MTS","AMOUNT","RATE_DAILY","PERIOD"]
[322848518,1713402999755,151.0,0.00024641,120]
[322848521,1713403439956,151.0,0.00024783,120]
[322848562,1713403837851,-403.50524658,0.00017,2]
[322848563,1713403837913,-661.63746694,0.00017,2]
[322848583,1713403846833,-484.85728648,0.00017,2]
[322848584,1713403846842,-481.89275287,0.00017332,2]
[322848585,1713403846869,-2136.97871656,0.00017332,2]
[322848586,1713403846888,-1067.90917594,0.00017332,2]
[322848587,1713403846903,-3686.78064537,0.00017339,2]
[322848588,1713403846914,-2338.36684488,0.0001734,2]
[322848589,1713403846923,-3686.78064537,0.00017341,2]
[322848590,1713403846932,-2338.36684488,0.00017344,2]
[322848591,1713403846942,-2338.36684488,0.00017345,2]
[322848592,1713403846951,-159.93,0.00017351,2]
[322848593,1713403846960,-877.80491556,0.00017352,2]
[322848594,1713403846969,-3686.78064537,0.00017355,2]
[322848595,1713403846979,-2338.36684488,0.00017361,2]
[322848596,1713403846988,-3686.78064537,0.00017367,2]
[322848597,1713403846997,-2338.36684488,0.00017367,2]
[322848598,1713403847007,-877.80491556,0.00017369,2]
[322848599,1713403847016,-2338.36684488,0.00017369,2]
[322848600,1713403847025,-3686.78064537,0.00017382,2]
[322848601,1713403847035,-877.80491556,0.00017385,2]
[322848602,1713403847044,-3686.78064537,0.00017385,2]
[322848603,1713403847053,-3686.78064537,0.00017387,2]
[322848604,1713403847063,-877.80491556,0.00017388,2]
[322848605,1713403847072,-877.80491556,0.00017388,2]
[322848606,1713403847082,-877.80491556,0.00017388,2]
[322848607,1713403847091,-877.80491556,0.00017392,2]
[322848608,1713403847101,-2338.36684488,0.00017395,2]
[322848609,1713403847110,-2338.36684488,0.00017396,2]
[322848610,1713403847119,-877.80491556,0.00017396,2]
[322848611,1713403847129,-877.80491556,0.00017397,2]
[322848612,1713403847138,-3686.78064537,0.00017398,2]
[322848613,1713403847149,-2338.36684488,0.00017398,2]
[322848614,1713403847159,-1600.0,0.00019,2]
[322848615,1713403847168,-327.19,0.00019131,2]
[322848616,1713403847177,-960.29,0.00019474,3]
[322848617,1713403847187,-373.73,0.00019567,2]
[322848618,1713403847196,-159.93,0.00019615,2]
[322848619,1713403847204,-164.22,0.00019635,2]
[322848620,1713403847213,-626.27,0.00019684,2]
[322848621,1713403847223,-1000.0,0.00019829,2]
[322848622,1713403847232,-299.99,0.00019886,7]
[322848623,1713403847241,-1000.0,0.00019886,2]
[322848624,1713403847251,-1826.76119205,0.00019899,2]
[322848625,1713403847260,-1826.76119205,0.0001999,2]
[322848626,1713403847269,-317.52,0.0001999,2]
[322848627,1713403847279,-2140.26834626,0.00019997,2]
[322848628,1713403847288,-500.0,0.0002,2]
[322848629,1713403847297,-500.0,0.0002,2]
[322848630,1713403847307,-201.41,0.0002,2]
[322848631,1713403847316,-1029.232256,0.0002,2]
[322848632,1713403847325,-779.17,0.0002,2]
[322848633,1713403847335,-859.45953861,0.0002,2]
[322848634,1713403847344,-186.09319174,0.0002,2]
[322848635,1713403847354,-5000.0,0.0002,2]
[322848636,1713403847363,-641.33652336,0.0002,2]
[322848637,1713403847372,-188.092,0.00020059,2]
[322848638,1713403847382,-6219.74523732,0.0002006,2]
[322848639,1713403847391,-20196.34585858,0.00020061,2]
[322848640,1713403847405,-1826.76119205,0.00020081,2]
[322848641,1713403847414,-1826.76119205,0.00020172,2]
[322848642,1713403847423,-1826.76119205,0.00020263,2]
[322848643,1713403847432,-1826.76119205,0.00020354,2]
[322848644,1713403847443,-1826.76119205,0.00020445,2]
[322848645,1713403847452,-982.78225283,0.0002049,2]
[322848646,1713403847462,-150.0,0.000205,2]
[322848647,1713403847471,-2287.88502,0.000205,2]
[322848648,1713403847480,-1000.0,0.000205,2]
[322848649,1713403847491,-1826.76119205,0.00020536,2]
[322848650,1713403847501,-1826.76119205,0.00020627,2]
[322848651,1713403847510,-982.78225283,0.00020708,2]
[322848652,1713403847520,-1826.76119205,0.00020718,2]
[322848653,1713403847529,-982.78225283,0.0002079,2]
[322848654,1713403847538,-982.78225283,0.00020799,2]
[322848655,1713403847548,-13879.29344006,0.000208,2]
[322848656,1713403847556,-685.81563387,0.000208,2]
[322848657,1713403847566,-982.78225283,0.00020801,2]
[322848658,1713403847575,-1826.76119205,0.00020809,2]
[322848659,1713403847584,-13879.29344006,0.00020811,2]
[322848660,1713403847593,-982.78225283,0.00020812,2]
[322848661,1713403847602,-982.78225283,0.00020812,2]
[322848662,1713403847611,-13879.29344006,0.00020822,2]
[322848663,1713403847619,-982.78225283,0.00020823,2]
[322848664,1713403847628,-982.78225283,0.00020823,2]
[322848665,1713403847637,-13879.29344006,0.00020833,2]
[322848666,1713403847646,-982.78225283,0.00020834,2]
[322848667,1713403847657,-982.78225283,0.00020834,2]
[322848668,1713403847666,-13879.29344006,0.00020844,2]
[322848669,1713403847676,-982.78225283,0.00020846,2]
[322848670,1713403847685,-13879.29344006,0.00020856,2]
[322848671,1713403847694,-982.78225283,0.00020857,2]
[322848672,1713403847703,-982.78225283,0.00020857,2]
[322848673,1713403847712,-13879.29344006,0.00020867,2]
[322848674,1713403847721,-982.78225283,0.00020868,2]
[322848675,1713403847730,-982.78225283,0.00020868,2]
[322848676,1713403847739,-13879.29344006,0.00020878,2]
[322848677,1713403847748,-982.78225283,0.00020879,2]
[322848678,1713403847758,-982.78225283,0.00020879,2]
[322848679,1713403847767,-13879.29344006,0.00020889,2]
[322848680,1713403847776,-982.78225283,0.0002089,2]
[322848681,1713403847785,-982.78225283,0.0002089,2]
[322848682,1713403847794,-500.0,0.00020895,2]
[322848683,1713403847803,-500.0,0.00020895,2]
[322848684,1713403847813,-500.0,0.00020895,2]
[322848685,1713403847823,-500.0,0.00020895,2]
[322848686,1713403847832,-559.0713,0.00020895,2]
[322848687,1713403847841,-1826.76119205,0.000209,2]
[322848688,1713403847850,-13879.29344006,0.000209,2]
[322848689,1713403847859,-186.17337489,0.000209,2]
[322848690,1713403847868,-189.59846927,0.000209,2]
[322848691,1713403847878,-2191.627968,0.00020997,2]
[322848692,1713403847887,-5484.2168846,0.00020997,2]
[322848693,1713403847896,-45601.3940517,0.00020997,2]
[322848694,1713403847913,-5172.4026059,0.00020997,2]
[322848695,1713403847922,-9734.6399139,0.00020997,2]
[322848696,1713403847932,-14452.109179,0.00020997,2]
[322848697,1713403847941,-199.19935736,0.00020997,2]
[322848698,1713403847952,-155.58338666,0.00020998,2]
[322848699,1713403847962,-271.30520559,0.00020998,2]
[322848700,1713403847971,-2506.40460922,0.00020998,2]
[322848701,1713403847981,-157.7705953,0.00020998,2]
[322848702,1713403847991,-244.38560139,0.00020998,2]
[322848703,1713403848001,-833.45664252,0.00020998,2]
[322848704,1713403848010,-2634.72636379,0.00020999,2]
[322848705,1713403848020,-1722.2488644,0.00020999,2]
[322848706,1713403848030,-500.0,0.00020999,2]
[322848707,1713403848039,-500.0,0.00020999,2]
[322848708,1713403848049,-500.0,0.00020999,2]
[322848709,1713403848058,-500.0,0.00020999,2]
[322848710,1713403848069,-500.0,0.00020999,2]
[322848711,1713403848078,-500.0,0.00020999,2]
[322848712,1713403848087,-500.0,0.00020999,2]
[322848713,1713403848097,-500.0,0.00020999,2]
[322848714,1713403848106,-500.0,0.00020999,2]
[322848715,1713403848115,-250.0,0.00020999,2]
[322848716,1713403848124,-500.0,0.00020999,2]
[322848717,1713403848133,-500.0,0.00020999,2]
[322848718,1713403848142,-500.0,0.00020999,2]
[322848719,1713403848154,-500.0,0.00020999,2]
[322848720,1713403848163,-500.0,0.00020999,2]
[322848721,1713403848172,-500.0,0.00020999,2]
[322848722,1713403848182,-500.0,0.00020999,2]
[322848723,1713403848191,-500.0,0.00020999,2]
[322848724,1713403848200,-500.0,0.00020999,2]
[322848725,1713403848210,-500.0,0.00020999,2]
[322848726,1713403848219,-500.0,0.00020999,2]
[322848727,1713403848229,-500.0,0.00020999,2]
[322848728,1713403848238,-500.0,0.00020999,2]
[322848729,1713403848248,-500.0,0.00020999,2]
[322848730,1713403848257,-500.0,0.00020999,2]
[322848731,1713403848266,-200.0,0.00020999,2]
[322848732,1713403848276,-500.0,0.00020999,2]
[322848733,1713403848286,-500.0,0.00020999,2]
[322848734,1713403848296,-500.0,0.00020999,2]
[322848735,1713403848305,-500.0,0.00020999,2]
[322848736,1713403848314,-500.0,0.00020999,2]
[322848737,1713403848324,-500.0,0.00020999,2]
[322848738,1713403848333,-500.0,0.00020999,2]
[322848739,1713403848343,-500.0,0.00020999,2]
[322848740,1713403848352,-500.0,0.00020999,2]
[322848741,1713403848362,-550.0,0.00020999,2]
[322848742,1713403848371,-1138.37660271,0.00021,3]
[322848743,1713403848381,-640.69796816,0.00021,2]
[322848744,1713403848390,-218.69622418,0.00021,2]
[322848745,1713403848401,-70068.80017795,0.00021,2]
[322848746,1713403848415,-861.80000004,0.00021,2]
[322848747,1713403848425,-860.94,0.00021,2]
[322848795,1713403902042,151.0,0.00026108,120]
[322848799,1713404140163,151.0,0.00025834,120]
[322848802,1713404560631,151.0,0.00024877,120]
[322848803,1713404619553,645.02342,0.00027,60]
[322848808,1713405037437,151.0,0.00024763,120]
[322848848,1713405047733,-1059.43241306,0.00017,2]
[322848849,1713405047761,-490.56758694,0.00017,2]
[322848850,1713405047770,-7373.56129074,0.00017337,2]
[322848851,1713405047780,-7373.56129074,0.00017342,2]
[322848852,1713405047789,-7373.56129074,0.00017351,2]
[322848853,1713405047798,-7373.56129074,0.00017355,2]
[322848854,1713405047807,-7373.56129074,0.00017361,2]
[322848855,1713405047817,-7373.56129074,0.0001737,2]
[322848856,1713405047826,-150.0,0.0001737,2]
[322848857,1713405047836,-7373.56129074,0.00017381,2]
[322848858,1713405047846,-7373.56129074,0.00017384,2]
[322848859,1713405047858,-7373.56129074,0.0001739,2]
[322848860,1713405047867,-151.51,0.00017465,2]
[322848861,1713405047877,-1600.0,0.00019,2]
[322848862,1713405047887,-701.01,0.00019277,2]
[322848863,1713405047896,-231.86,0.00019379,2]
[322848864,1713405047906,-218.26,0.00019502,2]
[322848865,1713405047916,-298.99,0.00019595,2]
[322848866,1713405047926,-571.0,0.000196,2]
[322848867,1713405047936,-151.51,0.00019855,2]
[322848868,1713405047946,-531.98874513,0.00019999,2]
[322848869,1713405047956,-150.0,0.0002,2]
[322848870,1713405048004,-845.78,0.0002,2]
[322848871,1713405048014,-5596.9150861,0.0002,2]
[322848872,1713405048023,-13025.36409615,0.0002,2]
[322848873,1713405048033,-2699.0,0.0002,2]
[322848874,1713405048043,-3522.22828809,0.0002,2]
[322848875,1713405048052,-5121.27147656,0.0002,2]
[322848876,1713405048062,-641.33652336,0.0002,2]
[322848877,1713405048071,-5000.0,0.0002,2]
[322848878,1713405048081,-20197.06103724,0.0002,2]
[322848879,1713405048091,-1000.0,0.00020463,2]
[322848880,1713405048103,-587.23,0.00020478,2]
[322848881,1713405048112,-835.56,0.00020478,2]
[322848882,1713405048122,-327.83,0.00020478,2]
[322848883,1713405048131,-150.0,0.000205,2]
[322848884,1713405048141,-297.1987,0.00020733,2]
[322848885,1713405048150,-398.0561,0.00020756,2]
[322848886,1713405048159,-157.25195503,0.000208,2]
[322848887,1713405048168,-157.25195501,0.0002082,2]
[322848888,1713405048178,-828.722721,0.00020831,2]
[322848889,1713405048187,-500.0,0.00020831,2]
[322848890,1713405048196,-1000.0,0.00020832,2]
[322848891,1713405048205,-500.0,0.00020832,2]
[322848892,1713405048214,-157.25195501,0.0002084,2]
[322848893,1713405048223,-157.25195501,0.0002086,2]
[322848894,1713405048233,-157.25195501,0.0002088,2]
[322848895,1713405048242,-8829.94027891,0.00020897,2]
[322848896,1713405048270,-257.3353056,0.00020897,2]
[322848897,1713405048316,-691.91999996,0.00020897,2]
[322848898,1713405048345,-65195.62751553,0.00020897,2]
[322848899,1713405048357,-1137.2153,0.000209,2]
[322848900,1713405048367,-194.2785,0.000209,2]
[322848901,1713405048379,-487.72377937,0.000209,2]
[322848902,1713405048389,-5800.0,0.000209,2]
[322848903,1713405048400,-157.25195501,0.000209,2]
[322848904,1713405048409,-1000.0,0.0002095,2]
[322848905,1713405048419,-1064.76363528,0.0002097,2]
[322848906,1713405048428,-2050.22082379,0.00020979,2]
[322848907,1713405048437,-624.84587685,0.0002099,2]
[322848908,1713405048447,-500.0,0.00020997,2]
[322848909,1713405048456,-600.27668275,0.00020997,2]
[322848910,1713405048465,-500.0,0.00020997,2]
[322848911,1713405048475,-1464.7058679,0.00020997,2]
[322848912,1713405048484,-4917.9710191,0.00020997,2]
[322848913,1713405048494,-486.5603939,0.00020997,2]
[322848914,1713405048504,-14930.0003552,0.00020997,2]
[322848915,1713405048513,-1964.2995261,0.00020997,2]
[322848916,1713405048523,-412.2266029,0.00020997,2]
[322848917,1713405048532,-5030.2388457,0.00020997,2]
[322848918,1713405048541,-18637.33005552,0.00020997,2]
[322848927,1713405326934,8493.64914557,0.000279,60]
[322848934,1713405401868,250.50770645,0.00025,30]
[322848937,1713405415925,275.3388634,0.00025,30]
[322848939,1713405441242,250.0,0.00025,30]
[322848940,1713405566535,10978.76319781,0.00025,30]
[322848941,1713405607136,151.0,0.00025016,120]
[322848943,1713405765895,6130.47573327,0.00025,30]
[322848944,1713405921111,4904.21,0.00025,30]
[322848946,1713406037895,846.0,0.00016,2]
[322848947,1713406048911,151.0,0.00024752,120]
[322849007,1713406232184,-469.82778,0.00016499,2]
[322849008,1713406232195,-369.95948262,0.00016499,2]
[322849009,1713406232207,-467.5,0.00016499,2]
[322849010,1713406232363,-1586.36490358,0.00016499,2]
[322849011,1713406232372,-432.15,0.000165,2]
[322849012,1713406232382,-151.51,0.00017857,2]
[322849013,1713406232391,-154.38864419,0.0001932,2]
[322849014,1713406232400,-325.53755359,0.00019341,2]
[322849015,1713406232410,-381.51692538,0.00019349,2]
[322849021,1713406233068,-376.03517225,0.00019349,2]
[322849022,1713406233077,-192.80417564,0.00019407,2]
[322849023,1713406233086,-31.16065211,0.00019493,2]
[322849024,1713406233098,-968.83934789,0.00019493,2]
[322849025,1713406233107,-31.16065211,0.00019517,2]
[322849026,1713406233201,-239.92934789,0.00019517,2]
[322849027,1713406233211,-164.92322372,0.00019551,2]
[322849028,1713406233221,-150.99,0.00019551,2]
[322849029,1713406233230,-489.83222088,0.000196,2]
[322849030,1713406234696,9213.0,0.00027972,90]
[322849044,1713406238087,-2225.16777912,0.000196,2]
[322849045,1713406238097,-150.0,0.00019609,2]
[322849046,1713406238106,-709.48475835,0.0001961,2]
[322849047,1713406238117,-591.93,0.0001961,2]
[322849048,1713406238126,-156.65021746,0.00019676,2]
[322849049,1713406238135,-166.84086597,0.00019707,2]
[322849050,1713406238144,-200.0,0.00019805,2]
[322849051,1713406238154,-211.52,0.00019818,2]
[322849052,1713406238162,-156.72601488,0.00019885,2]
[322849053,1713406238172,-668.20960222,0.000199,2]
[322849054,1713406238181,-325.53755359,0.00019913,2]
[322849055,1713406238190,-154.84000073,0.00019963,2]
[322849056,1713406238199,-178.64,0.00019971,2]
[322849057,1713406238209,-1578.65520047,0.00019978,2]
[322849058,1713406238219,-184.41,0.00019989,3]
[322849059,1713406238229,-289.48,0.0001999,2]
[322849060,1713406238238,-267.17790934,0.00019999,2]
[322849061,1713406238247,-38303.6370452,0.00019999,2]
[322849062,1713406238329,-3145.12011062,0.00019999,2]
[322849063,1713406238349,-275686.07542999,0.00019999,2]
[322849064,1713406238358,-752.24,0.0002,2]
[322849065,1713406238367,-5000.0,0.0002,2]
[322849066,1713406238377,-6219.74523732,0.0002,2]
[322849067,1713406238386,-20197.06103724,0.0002,2]
[322849068,1713406238395,-2798.0,0.0002,2]
[322849069,1713406238404,-6512.0,0.0002,2]
[322849070,1713406238413,-4049.06651057,0.0002,2]
[322849071,1713406238422,-1761.0,0.0002,2]
[322849072,1713406238431,-186.09319174,0.0002,2]
[322849073,1713406238440,-2561.0,0.0002,2]
[322849074,1713406238450,-641.33652336,0.00020006,2]
[322849075,1713406238459,-172.16506683,0.00020008,2]
[322849076,1713406238469,-668.20960221,0.00020011,2]
[322849078,1713406238478,-152.68724179,0.00020088,2]
[322849080,1713406238488,-159.44653573,0.00020093,2]
[322849081,1713406238497,-668.20960221,0.00020122,2]
[322849082,1713406238506,-320.82326434,0.00020163,2]
[322849083,1713406238516,-697.27084529,0.00020194,2]
[322849084,1713406238525,-1578.65520047,0.00020198,2]
[322849085,1713406238535,-154.38864419,0.00020202,2]
[322849086,1713406238544,-697.27084529,0.0002023,2]
[322849087,1713406238553,-668.20960221,0.00020233,2]
[322849088,1713406238562,-320.82326434,0.00020243,2]
[322849089,1713406238572,-434.58167508,0.00020246,2]
[322849090,1713406238581,-325.53755359,0.00020282,2]
[322849091,1713406238590,-757.55209763,0.00020284,2]
[322849092,1713406238599,-800.0,0.00020329,2]
[322849093,1713406238609,-668.20960221,0.00020344,2]
[322849094,1713406238618,-800.0,0.00020356,2]
[322849095,1713406238627,-154.25673102,0.00020366,2]
[322849096,1713406238636,-1578.65520047,0.00020369,2]
[322849097,1713406238645,-320.82326434,0.00020384,2]
[322849098,1713406238654,-668.20960221,0.00020456,2]
[322849099,1713406238664,-150.0,0.000205,2]
[322849100,1713406238674,-709.48475835,0.000205,2]
[322849101,1713406238684,-681.03418482,0.00020543,2]
[322849102,1713406238695,-151.51,0.00020546,2]
[322849103,1713406238705,-800.0,0.00020548,2]
[322849104,1713406238714,-668.20960221,0.00020567,2]
[322849105,1713406238726,-150.0,0.00020589,2]
[322849106,1713406238735,-697.27084529,0.00020655,2]
[322849107,1713406238744,-154.97857695,0.00020685,2]
[322849108,1713406238754,-155.9023528,0.00020688,2]
[322849109,1713406238763,-152.68724179,0.00020704,2]
[322849110,1713406238773,-153.55208797,0.00020732,2]
[322849111,1713406238783,-166.37476927,0.00020759,2]
[322849112,1713406238792,-150.0,0.00020793,2]
[322849113,1713406238802,-1547.93518506,0.000208,2]
[322849114,1713406238811,-697.27084529,0.00020802,2]
[322849115,1713406238821,-1578.65520047,0.00020834,2]
[322849116,1713406238831,-192.80417564,0.00020837,2]
[322849117,1713406238839,-166.65788776,0.00020837,2]
[322849118,1713406238849,-681.03418482,0.00020844,2]
[322849119,1713406238858,-325.53755359,0.00020859,2]
[322849120,1713406238868,-434.58167508,0.00020862,2]
[322849121,1713406238877,-1000.0,0.00020895,2]
[322849122,1713406238886,-1032.7687,0.00020895,2]
[322849123,1713406238895,-1721.60837764,0.00020896,2]
[322849124,1713406238904,-714.18046819,0.00020896,2]
[322849125,1713406238914,-2118.08199643,0.00020896,2]
[322849126,1713406238923,-314.36656813,0.00020896,2]
[322849127,1713406238932,-795.75252047,0.00020896,2]
[322849128,1713406238941,-229.64425958,0.00020896,2]
[322849129,1713406238950,-496.93290047,0.00020896,2]
[322849130,1713406238960,-500.0,0.00020897,2]
[322849131,1713406238971,-500.0,0.00020897,2]
[322849132,1713406238980,-500.0,0.00020897,2]
[322849133,1713406238989,-500.0,0.00020897,2]
[322849134,1713406238998,-500.0,0.00020897,2]
[322849135,1713406239007,-500.0,0.00020897,2]
[322849136,1713406239017,-500.0,0.00020897,2]
[322849137,1713406239026,-500.0,0.00020897,2]
[322849138,1713406239035,-623.51223719,0.00020897,2]
[322849139,1713406239045,-500.0,0.00020897,2]
[322849140,1713406239054,-500.0,0.00020897,2]
[322849141,1713406239063,-238.3256715,0.00020897,2]
[322849142,1713406239073,-556.44032426,0.00020897,2]
[322849143,1713406239082,-3402.49943476,0.00020897,2]
[322849144,1713406239092,-263.25790602,0.00020897,2]
[322849145,1713406239101,-1000.0,0.00020898,2]
[322849146,1713406239110,-100000.0,0.00020898,2]
[322849147,1713406239120,-500.0,0.00020898,2]
[322849148,1713406239129,-245000.0,0.00020898,2]
[322849149,1713406239138,-19399.6004,0.00020898,2]
[322849150,1713406239148,-3377.4857,0.00020898,2]
[322849151,1713406239157,-2386.8355222,0.00020898,2]
[322849152,1713406239166,-2386.8355222,0.00020898,2]
[322849153,1713406239393,-2386.8355222,0.00020899,2]
[322849154,1713406239417,-2386.8355222,0.00020899,2]
[322849155,1713406239426,-2386.8355222,0.00020899,2]
[322849156,1713406239435,-2386.8355222,0.00020899,2]
[322849157,1713406239444,-2386.8355222,0.000209,2]
[322849158,1713406239453,-213.0,0.000209,2]
[322849159,1713406239463,-2000.0,0.000209,2]
[322849160,1713406239474,-1000.0,0.000209,2]
[322849161,1713406239483,-7500.0,0.000209,2]
[322849162,1713406239492,-10000.0,0.000209,2]
[322849163,1713406239500,-2386.8355222,0.000209,2]
[322849164,1713406239509,-2314.92824891,0.000209,2]
[322849165,1713406239518,-819.96138059,0.000209,2]
[322849166,1713406239528,-480.94034043,0.000209,2]
[322849167,1713406239537,-2234.71163,0.0002091,2]
[322849168,1713406239546,-166.66666667,0.00020944,2]
[322849169,1713406239556,-5046.1768153,0.00020994,2]
[322849170,1713406239565,-6062.0273774,0.00020994,2]
[322849171,1713406239574,-7642.3856277,0.00020994,2]
[322849172,1713406239584,-3935.2366607,0.00020994,2]
[322849173,1713406239594,-173.041811,0.00020997,2]
[322849174,1713406239603,-36.23146673,0.00020997,2]
[322849175,1713406239705,-121.81034427,0.00020997,2]
[322849176,1713406239715,-6866.59965573,0.00020997,2]
[322849177,1713406239768,-15099.56571727,0.00020997,2]
[322849178,1713406239779,-276.09026787,0.00020997,2]
[322849179,1713406239789,-454.0089549,0.00020997,2]
[322849180,1713406239799,-13042.8095716,0.00020997,2]
[322849181,1713406239809,-2103.6252383,0.00020997,2]
[322849183,1713406239818,-2023.113951,0.00020997,2]
[322849185,1713406239828,-153.11846306,0.00020997,2]
[322849187,1713406239837,-2234.71162,0.00020997,2]
[322849189,1713406239848,-6473.80608794,0.00020998,2]
[322849191,1713406239858,-1339.29265473,0.00020998,2]
[322849193,1713406239868,-164.84998288,0.00020998,2]
[322849196,1713406239878,-1848.11750107,0.00020998,2]
[322849199,1713406239887,-307.73186783,0.00020998,2]
[322849201,1713406239896,-540.89046865,0.00020998,2]
[322849203,1713406239906,-222.65864042,0.00020998,2]
[322849205,1713406239915,-157.19474673,0.00020998,2]
[322849207,1713406239925,-296.76568474,0.00020998,2]
[322849209,1713406239935,-190.64933144,0.00020998,2]
[322849211,1713406239944,-2028.33314345,0.00020998,2]
[322849212,1713406239954,-1767.7040312,0.00020998,2]
[322849214,1713406239963,-802.58857984,0.00020998,2]
[322849216,1713406239974,-372.60791516,0.00020998,2]
[322849218,1713406239984,-216.77597942,0.00020998,2]
[322849219,1713406239994,-155.35266712,0.00020998,2]
[322849221,1713406240004,-19641.73300266,0.00020998,2]
[322849223,1713406240013,-210696.29843564,0.00020998,2]
[322849224,1713406240024,-173.041811,0.00020998,2]
[322849226,1713406240035,-173.041811,0.00020998,2]
[322849228,1713406240045,-173.041811,0.00020998,2]
[322849230,1713406240054,-173.041811,0.00020998,2]
[322849232,1713406240065,-173.041811,0.00020998,2]
[322849233,1713406240074,-2430.58676095,0.00020999,2]
[322849235,1713406240083,-2433.83016383,0.00020999,2]
[322849237,1713406240093,-648.0,0.00020999,2]
[322849239,1713406240102,-648.0,0.00020999,2]
[322849241,1713406240113,-648.0,0.00020999,2]
[322849242,1713406240123,-648.0,0.00020999,2]
[322849244,1713406240132,-648.0,0.00020999,2]
[322849245,1713406240142,-648.0,0.00020999,2]
[322849246,1713406240152,-648.0,0.00020999,2]
[322849247,1713406240161,-648.0,0.00020999,2]
[322849248,1713406240171,-648.0,0.00020999,2]
[322849249,1713406240180,-648.0,0.00020999,2]
[322849250,1713406240189,-354.03259041,0.00020999,2]
[322849251,1713406240198,-1025.30135823,0.00021,3]
[322849252,1713406240207,-506484.78114371,0.00021,2]
[322849253,1713406240217,-280424.38464671,0.00021,2]
[322849266,1713406241261,-668.20960221,0.00020678,2]
[322849267,1713406241270,-650.79039779,0.00020896,2]
[322849268,1713406241282,-1133.81919156,0.00020896,2]
[322849269,1713406241291,-899307.32073491,0.00021,2]
[322849270,1713406241303,-1099.60325971,0.00021,2]
[322849271,1713406241324,-4432.64605552,0.00021,2]
[322849272,1713406241466,-25177.00907375,0.00021,2]
[322849273,1713406241482,-68952.79761136,0.00021,2]
[322849310,1713406243993,-7422.1201178,0.000209,2]
[322849311,1713406244049,-77.8798822,0.000209,2]
[322849312,1713406244059,-1216.91508191,0.00020999,2]
[322849313,1713406244068,-512469.96585598,0.00021,2]
[322849314,1713406244078,-473914.95422448,0.00021,2]
[322849315,1713406244089,-604.0,0.00021,2]
[322849316,1713406244164,-358344.37372742,0.00021,2]
[322849317,1713406244191,-267541.68366993,0.00021,2]
[322849318,1713406244202,-274.733615,0.00021,2]
[322849319,1713406244371,-268.09084404,0.00021,2]
[322849341,1713406246299,-260.74326301,0.00018806,2]
[322849342,1713406246308,-155.64486875,0.00018806,2]
[322849343,1713406246317,-668.20960221,0.00020789,2]
[322849344,1713406246327,-2384.95954477,0.00020896,2]
[322849345,1713406246336,-9146.92784126,0.00021,2]
[322849346,1713406246430,-388208.25888899,0.00021,2]
[322849347,1713406246441,-12361.79999999,0.00021,2]
[322849348,1713406246500,-2790.84532239,0.00021,2]
[322849349,1713406246512,-638.75344237,0.00021,2]
[322849350,1713406246569,-673.49542188,0.00021,2]
[322849352,1713406457791,2091.96882238,0.00025,30]
[322849353,1713406462376,151.0,0.00025535,120]
[322849354,1713406702325,151.0,0.0002489,120]
[322849360,1713407228514,10609.06792443,0.00028,120]
[322849361,1713407229691,151.0,0.00024794,120]
[322849389,1713407432226,-155.0,0.00016625,2]
[322849390,1713407432235,-151.51,0.00016626,2]
[322849391,1713407432246,-169.94666386,0.00017,2]
[322849392,1713407432281,-982.33288776,0.00017,2]
[322849401,1713407433325,-319.4,0.00017,2]
[322849402,1713407433337,-78.32044838,0.00017,2]
[322849403,1713407433346,-1640.37836871,0.000183,2]
[322849404,1713407433465,-331.15464915,0.000183,2]
[322849405,1713407433475,-9668.88235085,0.00018563,2]
[322849407,1713407438358,-682.3097149,0.00018563,2]
[322849408,1713407438498,-2406.45793425,0.00018563,2]
[322849409,1713407438507,-245.12,0.00018573,2]
[322849410,1713407438516,-260.7,0.00018577,2]
[322849411,1713407438526,-162.28826086,0.00018598,2]
[322849412,1713407438534,-163.15,0.00018679,2]